bitfinex/quotes_BTCUSD_20250620
["timestamp","ask_amount","ask_price","bid_price","bid_amount"]
[1750417647309,0.24661673,106120.0,106110.0,0.41714646]
[1750417647533,0.24661673,106120.0,106110.0,0.18948364]
[1750417647763,0.22777033,106120.0,106110.0,0.1534]
[1750417647975,0.22777033,106120.0,106110.0,0.34188364]
[1750417648204,0.32304926,106120.0,106110.0,0.001]
[1750417648422,0.32304926,106120.0,106110.0,0.19890782]
[1750417649770,0.32304926,106120.0,106110.0,0.20833191]
[1750417651078,0.34954158,106120.0,106110.0,0.20833191]
[1750417654454,0.34954158,106120.0,106110.0,0.18948364]
[1750417654882,0.34954158,106120.0,106110.0,0.19890782]
[1750417656344,0.50190158,106120.0,106110.0,0.19890782]
[1750417658303,0.50190158,106120.0,106110.0,0.001]
[1750417659607,0.50190158,106120.0,106110.0,0.19890782]
[1750417660053,0.50190158,106120.0,106110.0,0.20833182]
[1750417660918,0.48483255,106120.0,106110.0,0.21775573]
[1750417661125,0.49425557,106120.0,106110.0,0.22717955]
[1750417661569,0.47915557,106120.0,106110.0,0.22717955]
[1750417662418,0.49565557,106120.0,106110.0,0.22717955]
[1750417662632,0.13598338,106120.0,106110.0,0.23660328]
[1750417662842,0.23412988,106120.0,106110.0,0.23660266]
[1750417663046,0.07473237,106120.0,106110.0,0.25170266]
[1750417663270,0.06530952,106120.0,106110.0,0.25170266]
[1750417663519,0.07473228,106120.0,106110.0,0.25170266]
[1750417663717,0.08415521,106120.0,106110.0,0.25170266]
[1750417664373,0.08435521,106120.0,106110.0,0.25170266]
[1750417664847,0.09377832,106120.0,106110.0,0.23660266]
[1750417664849,0.10937832,106120.0,106110.0,0.23660266]
[1750417665845,0.10937903,106120.0,106110.0,0.23660266]
[1750417666748,0.28842233,106120.0,106110.0,0.2271791]
[1750417667174,0.28842233,106120.0,106110.0,0.23660266]
[1750417667592,0.06551014,106120.0,106110.0,0.23660266]
[1750417667831,0.06551014,106120.0,106110.0,0.25290266]
[1750417668443,0.0655097,106120.0,106110.0,0.25290266]
[1750417668662,0.07493263,106120.0,106110.0,0.25290266]
[1750417668887,0.35640812,106130.0,106120.0,0.21673486]
[1750417668888,0.40722587,106130.0,106120.0,0.21673486]
[1750417669113,0.40722587,106130.0,106120.0,0.24245753]
[1750417669337,0.40589522,106130.0,106120.0,0.24245753]
[1750417669550,0.41531744,106130.0,106120.0,0.24245753]
[1750417670007,0.35884365,106130.0,106120.0,0.24245753]
[1750417670239,0.36184356,106130.0,106120.0,0.24245753]
[1750417671651,0.37126552,106130.0,106120.0,0.24245753]
[1750417671879,0.38068774,106130.0,106120.0,0.24245753]
[1750417673346,0.38885164,106130.0,106120.0,0.24245753]
[1750417673991,0.37942942,106130.0,106120.0,0.24245753]
[1750417674213,0.38885164,106130.0,106120.0,0.24245753]
[1750417675893,0.38885156,106130.0,106120.0,0.24245753]
[1750417676531,0.38068766,106130.0,106120.0,0.24245753]
[1750417678853,0.37126552,106130.0,106120.0,0.24245753]
[1750417679083,0.37126552,106130.0,106120.0,0.25845753]
[1750417679302,0.003,106130.0,106120.0,0.25845753]
[1750417679530,0.01242178,106130.0,106120.0,0.25845753]
[1750417679766,0.01242178,106130.0,106120.0,0.41069753]
[1750417680242,0.02184365,106130.0,106120.0,0.41069753]
[1750417680504,0.003,106130.0,106120.0,0.41069753]
[1750417680720,0.01242169,106130.0,106120.0,0.41069753]
[1750417680930,0.02184356,106130.0,106120.0,0.41069753]
[1750417681159,0.01242169,106130.0,106120.0,0.41069753]
[1750417681591,0.003,106130.0,106120.0,0.41069753]
[1750417681823,0.02184338,106130.0,106120.0,0.41069753]
[1750417682313,0.03126525,106130.0,106120.0,0.39469753]
[1750417683153,0.02184338,106130.0,106120.0,0.39469753]
[1750417683831,0.04068756,106130.0,106120.0,0.39469753]
[1750417684269,0.03126534,106130.0,106120.0,0.39469753]
[1750417685211,0.02184338,106130.0,106120.0,0.39469753]
[1750417685666,0.03126525,106130.0,106120.0,0.39469753]
[1750417686414,0.0406873,106130.0,106120.0,0.39469753]
[1750417686642,0.03126525,106130.0,106120.0,0.39469753]
[1750417686865,0.0406873,106130.0,106120.0,0.39469753]
[1750417687282,0.03126525,106130.0,106120.0,0.39469753]
[1750417687532,0.0406873,106130.0,106120.0,0.39469753]
[1750417687741,0.03126525,106130.0,106120.0,0.39469753]
[1750417688287,0.04068721,106130.0,106120.0,0.39469753]
[1750417688717,0.03126525,106130.0,106120.0,0.39469753]
[1750417690153,0.02184338,106130.0,106120.0,0.39469753]
[1750417692880,0.0124216,106130.0,106120.0,0.39469753]
[1750417693328,0.003,106130.0,106120.0,0.39469753]
[1750417693549,0.003,106130.0,106120.0,0.8854273]
[1750417693798,0.003,106130.0,106120.0,0.5628511]
[1750417694036,0.003,106130.0,106120.0,0.82905266]
[1750417694942,0.002,106130.0,106120.0,0.82905266]
[1750417695302,0.002,106130.0,106120.0,0.83005266]
[1750417695759,0.002,106130.0,106120.0,0.50747646]
[1750417695987,5e-05,106140.0,106130.0,0.23251426]
[1750417696211,5e-05,106140.0,106130.0,0.28898063]
[1750417697457,0.00205,106140.0,106130.0,0.28898063]
[1750417697912,0.00205,106140.0,106130.0,0.23251426]
[1750417698548,0.00305,106140.0,106130.0,0.28898063]
[1750417698741,0.00305,106140.0,106130.0,0.23251426]
[1750417699338,0.00305,106140.0,106130.0,0.28898063]
[1750417699795,0.00305,106140.0,106130.0,0.23251426]
[1750417700322,0.00305,106140.0,106130.0,0.28898063]
[1750417700761,0.00305,106140.0,106130.0,0.23251426]
[1750417702168,0.00305,106140.0,106130.0,0.24060775]
[1750417702707,0.00305,106140.0,106130.0,0.23251426]
[1750417703602,0.00305,106140.0,106130.0,0.28898063]
[1750417704928,0.01247071,106140.0,106130.0,0.28898063]
[1750417705114,0.00305,106140.0,106130.0,0.28898063]
[1750417705551,0.00305,106140.0,106130.0,0.23251426]
[1750417705927,0.00305,106140.0,106130.0,0.28895347]
[1750417706374,0.00305,106140.0,106130.0,0.23251426]
[1750417710598,0.01247071,106140.0,106130.0,0.23251426]
[1750417710629,0.00305,106140.0,106130.0,0.23251426]
[1750417711981,0.04701258,106140.0,106130.0,0.20729248]
[1750417712209,0.07273383,106140.0,106130.0,0.36883426]
[1750417713069,0.04701258,106140.0,106130.0,0.36883426]
[1750417713938,0.05643383,106140.0,106130.0,0.36883426]
[1750417714408,0.04701258,106140.0,106130.0,0.36883426]
[1750417715680,0.04701249,106140.0,106130.0,0.36883426]
[1750417715887,0.01875,106140.0,106130.0,0.36883426]
[1750417716318,0.01875,106140.0,106130.0,0.42527347]
[1750417720664,0.00305,106140.0,106130.0,0.44097347]
[1750417726154,0.01835,106140.0,106130.0,0.42527347]
[1750417728245,0.02777071,106140.0,106130.0,0.42527347]
[1750417728831,0.01835,106140.0,106130.0,0.42527347]
[1750417729479,0.0277708,106140.0,106130.0,0.42527347]
[1750417729824,0.01835,106140.0,106130.0,0.42527347]
[1750417730236,0.02777071,106140.0,106130.0,0.42527347]
[1750417731251,0.04661267,106140.0,106130.0,0.42527347]
[1750417731453,0.04661258,106140.0,106130.0,0.42527347]
[1750417732260,0.0371916,106140.0,106130.0,0.42527347]
[1750417735119,0.02777071,106140.0,106130.0,0.42527347]
[1750417735304,0.0371916,106140.0,106130.0,0.42527347]
[1750417737374,0.02777071,106140.0,106130.0,0.42527347]
[1750417737582,0.03719151,106140.0,106130.0,0.42527347]
[1750417738255,0.01835,106140.0,106130.0,0.42527347]
[1750417738493,0.00305,106140.0,106130.0,0.44147347]
[1750417738712,0.01845,106140.0,106130.0,0.42527347]
[1750417740530,0.0278708,106140.0,106130.0,0.42527347]
[1750417740746,0.02787071,106140.0,106130.0,0.42527347]
[1750417741179,0.0372916,106140.0,106130.0,0.42527347]
[1750417742301,0.03729151,106140.0,106130.0,0.42527347]
[1750417743692,0.04671249,106140.0,106130.0,0.42527347]
[1750417743908,0.03729151,106140.0,106130.0,0.42527347]
[1750417744617,0.02787071,106140.0,106130.0,0.42527347]
[1750417744897,0.01845,106140.0,106130.0,0.42527347]
[1750417745568,0.0278708,106140.0,106130.0,0.42527347]
[1750417745787,0.01845,106140.0,106130.0,0.42527347]
[1750417751296,0.00305,106140.0,106130.0,0.44027347]
[1750417753606,0.01855,106140.0,106130.0,0.42527347]
[1750417755838,0.02797071,106140.0,106130.0,0.42527347]
[1750417756117,0.01855,106140.0,106130.0,0.42527347]
[1750417764083,0.00305,106140.0,106130.0,0.44117347]
[1750417767680,0.01915,106140.0,106130.0,0.44117347]
[1750417767909,0.01915,106140.0,106130.0,0.42527347]
[1750417768127,0.01915,106140.0,106130.0,0.44187347]
[1750417768339,0.00305,106140.0,106130.0,0.44187347]
[1750417769199,0.00305,106140.0,106130.0,0.42527347]
[1750417769413,0.01935,106140.0,106130.0,0.42527347]
[1750417772593,0.00305,106140.0,106130.0,0.42527347]
[1750417772815,0.01835,106140.0,106130.0,0.42527347]
[1750417781461,0.00305,106140.0,106130.0,0.81858939]
[1750417781679,0.00305,106140.0,106130.0,0.89371117]
[1750417786340,0.00305,106140.0,106130.0,0.81858939]
[1750417793376,0.00305,106140.0,106130.0,0.89371117]
[1750417794170,5e-05,106140.0,106130.0,0.89371117]
[1750417794402,5e-05,106140.0,106130.0,0.87711117]
[1750417794632,5e-05,106140.0,106130.0,0.87811117]
[1750417795101,5e-05,106140.0,106130.0,0.55553497]
[1750417795321,5e-05,106140.0,106130.0,0.87811117]
[1750417795808,0.01635,106140.0,106130.0,0.86265117]
[1750417796038,0.01635,106140.0,106130.0,0.54007497]
[1750417796470,0.01635,106140.0,106130.0,0.44479604]
[1750417798166,0.01635,106140.0,106130.0,0.36967426]
[1750417798781,0.01635,106140.0,106130.0,0.36962626]
[1750417802267,0.07617266,106140.0,106130.0,0.26482099]
[1750417802517,0.25518223,106140.0,106130.0,0.36025283]
[1750417802736,0.25518223,106140.0,106130.0,0.36967505]
[1750417802737,0.24576116,106140.0,106130.0,0.36967505]
[1750417803625,0.28456116,106140.0,106130.0,0.21771505]
[1750417803855,0.28456116,106140.0,106130.0,0.20829283]
[1750417804074,0.27752313,106140.0,106130.0,0.21771497]
[1750417804302,0.27752313,106140.0,106130.0,0.20829283]
[1750417804525,0.26810179,106140.0,106130.0,0.20829283]
[1750417804769,0.25868037,106140.0,106130.0,0.20829283]
[1750417805195,0.30339553,106140.0,106130.0,0.20829283]
[1750417806410,0.30339553,106140.0,106130.0,0.36967505]
[1750417807607,0.30339553,106140.0,106130.0,0.35083052]
[1750417808371,0.30339553,106140.0,106130.0,0.19887052]
[1750417808638,0.30339553,106140.0,106130.0,0.20829283]
[1750417809809,0.30339553,106140.0,106130.0,0.21771505]
[1750417809999,0.30339553,106140.0,106130.0,0.22713719]
[1750417810467,0.30339553,106140.0,106130.0,0.23655924]
[1750417810800,0.30339553,106140.0,106130.0,0.22713719]
[1750417811238,0.30339553,106140.0,106130.0,0.23655924]
[1750417811455,0.25868037,106140.0,106130.0,0.23655924]
[1750417814515,0.25868037,106140.0,106130.0,0.22713719]
[1750417816101,0.25868037,106140.0,106130.0,0.18944812]
[1750417816534,0.25868037,106140.0,106130.0,0.19887052]
[1750417816751,0.25868037,106140.0,106130.0,0.20829283]
[1750417817092,0.25868037,106140.0,106130.0,0.21771505]
[1750417817311,0.30339553,106140.0,106130.0,0.22713719]
[1750417817925,0.25868037,106140.0,106130.0,0.22713719]
[1750417818128,0.25868037,106140.0,106130.0,0.23655924]
[1750417820193,0.25868037,106140.0,106130.0,0.21771505]
[1750417821806,0.25868037,106140.0,106130.0,0.22713719]
[1750417824231,0.41068037,106140.0,106130.0,0.22713719]
[1750417824668,0.47059553,106140.0,106130.0,0.22713719]
[1750417825939,0.27979553,106140.0,106130.0,0.22713719]
[1750417826131,0.41068037,106140.0,106130.0,0.22713719]
[1750417827209,0.41068037,106140.0,106130.0,0.21771505]
[1750417831297,0.41068037,106140.0,106130.0,0.22713719]
[1750417833121,0.41068037,106140.0,106130.0,0.21771505]
[1750417834075,0.41063237,106140.0,106130.0,0.21771505]
[1750417834512,0.41063237,106140.0,106130.0,0.18944812]
[1750417834745,5.90023074,106140.0,106130.0,0.001]
[1750417835911,5.94930389,106140.0,106130.0,0.001]
[1750417836160,0.21673468,106120.0,106110.0,0.2167559]
[1750417836372,0.43999468,106120.0,106110.0,0.2073319]
[1750417837256,0.50284059,106120.0,106110.0,0.2073319]
[1750417837475,0.50284059,106120.0,106110.0,0.2083319]
[1750417837908,0.49341792,106120.0,106110.0,0.2083319]
[1750417838121,0.43057201,106120.0,106110.0,0.21775581]
[1750417838866,0.43057201,106120.0,106110.0,0.2177559]
[1750417839076,0.4240953,106120.0,106110.0,0.23660345]
[1750417839280,0.4240953,106120.0,106110.0,0.22717972]
[1750417839499,0.43271881,106120.0,106110.0,0.22717972]
[1750417839749,0.43271881,106120.0,106110.0,0.2177559]
[1750417839961,0.42329588,106120.0,106110.0,0.2177559]
[1750417840178,0.41387268,106120.0,106110.0,0.2083319]
[1750417840835,0.47568638,106120.0,106110.0,0.2083319]
[1750417842715,0.41387268,106120.0,106110.0,0.2177559]
[1750417843876,0.41382468,106120.0,106110.0,0.2177559]
[1750417847941,0.41382468,106120.0,106110.0,0.2083319]
[1750417850262,0.41382468,106120.0,106110.0,0.2177559]
[1750417850667,0.22306468,106120.0,106110.0,0.2177559]
[1750417850868,0.41382468,106120.0,106110.0,0.2177559]
[1750417851083,0.0166,106120.0,106110.0,0.22717981]
[1750417851293,0.0501788,106130.0,106120.0,0.20731219]
[1750417851495,0.21846075,106130.0,106120.0,0.24165779]
[1750417851701,0.06646075,106130.0,106120.0,0.24165779]
[1750417852144,0.02770075,106130.0,106120.0,0.24165779]
[1750417852343,0.08530502,106130.0,106120.0,0.24165779]
[1750417852548,0.27375314,106130.0,106120.0,0.24165779]
[1750417852752,0.27475314,106130.0,106120.0,0.24165779]
[1750417852911,0.08630502,106130.0,106120.0,0.24165779]
[1750417853921,0.08830502,106130.0,106120.0,0.24165779]
[1750417855056,0.23799314,106130.0,106120.0,0.24165779]
[1750417855276,0.24741554,106130.0,106120.0,0.24165779]
[1750417855493,0.28617554,106130.0,106120.0,0.24165779]
[1750417855700,0.24741554,106130.0,106120.0,0.24165779]
[1750417855909,0.27675376,106130.0,106120.0,0.23223512]
[1750417856167,0.27675376,106130.0,106120.0,0.24165797]
[1750417856348,0.2440718,106130.0,106120.0,0.22615797]
[1750417856570,0.01884534,106120.0,106110.0,0.38475448]
[1750417856783,0.01884534,106120.0,106110.0,0.23275448]
[1750417857666,0.02826854,106120.0,106110.0,0.23275448]
[1750417857870,0.03769156,106120.0,106110.0,0.22333101]
[1750417858205,0.03769156,106120.0,106110.0,0.22433101]
[1750417859026,0.22615744,106120.0,106110.0,0.20833101]
[1750417859176,0.25088073,106120.0,106110.0,0.20833101]
[1750417859383,0.05299156,106120.0,106110.0,0.20833101]
[1750417860498,0.03414534,106120.0,106110.0,0.20833101]
[1750417860721,0.02826836,106120.0,106110.0,0.22473101]
[1750417861692,0.01884534,106120.0,106110.0,0.22473101]
[1750417861895,0.02826827,106120.0,106110.0,0.22473101]
[1750417862815,0.03769138,106120.0,106110.0,0.22473101]
[1750417863023,0.02826827,106120.0,106110.0,0.22473101]
[1750417863227,0.03769129,106120.0,106110.0,0.22473101]
[1750417863846,0.02826827,106120.0,106110.0,0.22473101]
[1750417864262,0.03769129,106120.0,106110.0,0.22473101]
[1750417865189,0.02826827,106120.0,106110.0,0.22473101]
[1750417866325,0.01884534,106120.0,106110.0,0.22473101]
[1750417866719,0.02826827,106120.0,106110.0,0.22473101]
[1750417868914,0.03769129,106120.0,106110.0,0.22473101]
[1750417869527,0.02826827,106120.0,106110.0,0.22473101]
[1750417870283,0.01884534,106120.0,106110.0,0.22473101]
[1750417870501,0.02826827,106120.0,106110.0,0.22473101]
[1750417871486,0.01884534,106120.0,106110.0,0.22473101]
[1750417871687,0.27020958,106130.0,106120.0,0.21673495]
[1750417872142,0.27963163,106130.0,106120.0,0.21673495]
[1750417872357,0.27963163,106130.0,106120.0,0.21673512]
[1750417872584,0.27963163,106130.0,106120.0,0.22615797]
[1750417873069,0.27963163,106130.0,106120.0,0.23558064]
[1750417873301,0.28163163,106130.0,106120.0,0.22615797]
[1750417873761,0.08476111,106130.0,106120.0,0.23558073]
[1750417873990,0.08476058,106130.0,106120.0,0.23558011]
[1750417874224,0.1036052,106130.0,106120.0,0.22615744]
[1750417874449,0.1036052,106130.0,106120.0,0.23558011]
[1750417875393,0.0941828,106130.0,106120.0,0.23558011]
[1750417876058,0.28263092,106130.0,106120.0,0.23558011]
[1750417876283,0.29205323,106130.0,106120.0,0.23558011]
[1750417877669,0.10360511,106130.0,106120.0,0.23558011]
[1750417878015,0.0554228,106130.0,106120.0,0.23558011]
[1750417878211,0.0941828,106130.0,106120.0,0.23558011]
[1750417878341,0.0554228,106130.0,106120.0,0.23558011]
[1750417878552,0.0941828,106130.0,106120.0,0.23558011]
[1750417879000,0.0554228,106130.0,106120.0,0.23558011]
[1750417879236,0.0941828,106130.0,106120.0,0.23558011]
[1750417879850,0.10360511,106130.0,106120.0,0.23558011]
[1750417880056,0.29205323,106130.0,106120.0,0.23558011]
[1750417880394,0.10360511,106130.0,106120.0,0.23558011]
[1750417882192,0.0941828,106130.0,106120.0,0.23558011]
[1750417882631,0.29205332,106130.0,106120.0,0.22615744]
[1750417885233,0.29205332,106130.0,106120.0,0.23558011]
[1750417885452,0.29205332,106130.0,106120.0,0.21673468]
[1750417886735,0.29205332,106130.0,106120.0,0.22615744]
[1750417888185,0.28263154,106130.0,106120.0,0.21673512]
[1750417888398,0.28263154,106130.0,106120.0,0.19788917]
[1750417888613,0.27320949,106130.0,106120.0,0.20731237]
[1750417888825,0.28920949,106130.0,106120.0,0.2261585]
[1750417889231,0.28920949,106130.0,106120.0,0.21673548]
[1750417889449,0.28920949,106130.0,106120.0,0.2261585]
[1750417889669,0.28920949,106130.0,106120.0,0.23558143]
[1750417889888,0.28920949,106130.0,106120.0,0.23558099]
[1750417890302,0.27320949,106130.0,106120.0,0.23558055]
[1750417891462,0.27320949,106130.0,106120.0,0.22615779]
[1750417891903,0.27320949,106130.0,106120.0,0.20731201]
[1750417892288,0.27320949,106130.0,106120.0,0.21673486]
[1750417893285,0.28850949,106130.0,106120.0,0.21673486]
[1750417894559,0.27320949,106130.0,106120.0,0.21673486]
[1750417895088,0.27320949,106130.0,106120.0,0.22615762]
[1750417896478,0.27320949,106130.0,106120.0,0.23558029]
[1750417896906,0.27320949,106130.0,106120.0,0.22615762]
[1750417897702,0.08476093,106130.0,106120.0,0.22615762]
[1750417897914,0.28263136,106130.0,106120.0,0.22615762]
[1750417898321,0.29205376,106130.0,106120.0,0.22615762]
[1750417898534,0.29205376,106130.0,106120.0,0.23558029]
[1750417898948,0.28263136,106130.0,106120.0,0.23558029]
[1750417900091,0.09418324,106130.0,106120.0,0.23558029]
[1750417900318,0.28263136,106130.0,106120.0,0.23558029]
[1750417901204,0.29205376,106130.0,106120.0,0.23558029]
[1750417902230,0.09418324,106130.0,106120.0,0.23558029]
[1750417903954,0.08476093,106130.0,106120.0,0.23558029]
[1750417904315,0.28263136,106130.0,106120.0,0.23558029]
[1750417904547,0.29205376,106130.0,106120.0,0.23558029]
[1750417905655,0.09418324,106130.0,106120.0,0.23558029]
[1750417905937,0.28263136,106130.0,106120.0,0.23558029]
[1750417907668,0.04600093,106130.0,106120.0,0.23558029]
[1750417907881,0.06946022,106130.0,106120.0,0.25118029]
[1750417908347,0.07888227,106130.0,106120.0,0.25118029]
[1750417908542,0.03070022,106130.0,106120.0,0.25118029]
[1750417908754,0.0511816,106130.0,106120.0,0.25118029]
[1750417908986,0.06060347,106130.0,106120.0,0.25118029]
[1750417909192,0.06959079,106130.0,106120.0,0.25118029]
[1750417910018,0.07901284,106130.0,106120.0,0.25118029]
[1750417911453,0.07901275,106130.0,106120.0,0.25118029]
[1750417912515,0.06959079,106130.0,106120.0,0.25118029]
[1750417913137,0.07901284,106130.0,106120.0,0.25118029]
[1750417913812,0.06060347,106130.0,106120.0,0.25118029]
[1750417914026,0.07002561,106130.0,106120.0,0.25118029]
[1750417914441,0.06060347,106130.0,106120.0,0.25118029]
[1750417914651,0.07002561,106130.0,106120.0,0.25118029]
[1750417915141,0.07886288,106130.0,106120.0,0.25118029]
[1750417915786,0.06060347,106130.0,106120.0,0.25118029]
[1750417916038,0.07002552,106130.0,106120.0,0.25118029]
[1750417917200,0.07944774,106130.0,106120.0,0.25118029]
[1750417917824,0.08816892,106130.0,106120.0,0.25118029]
[1750417918510,0.0787467,106130.0,106120.0,0.25118029]
[1750417919073,0.0787467,106130.0,106120.0,0.40310029]
[1750417919458,0.08816892,106130.0,106120.0,0.40310029]
[1750417920396,0.06060347,106130.0,106120.0,0.40310029]
[1750417920599,0.07002543,106130.0,106120.0,0.40310029]
[1750417920802,0.07944748,106130.0,106120.0,0.40310029]
[1750417921717,0.0888697,106130.0,106120.0,0.40310029]
[1750417921917,0.07944748,106130.0,106120.0,0.40310029]
[1750417922406,0.0888697,106130.0,106120.0,0.40310029]
[1750417924063,0.0888697,106130.0,106120.0,0.25118029]
[1750417924268,0.1043697,106130.0,106120.0,0.23558029]
[1750417925481,0.29281782,106130.0,106120.0,0.23558029]
[1750417925693,0.1043697,106130.0,106120.0,0.23558029]
[1750417931064,0.29281853,106130.0,106120.0,0.22615762]
[1750417931220,0.2739747,106130.0,106120.0,0.21673494]
[1750417931690,0.03414578,106120.0,106110.0,0.41573943]
[1750417931930,0.24145735,106120.0,106110.0,0.27328387]
[1750417932405,0.24145735,106120.0,106110.0,0.36863554]
[1750417932629,0.24145735,106120.0,106110.0,0.37805927]
[1750417933077,0.23303477,106120.0,106110.0,0.37805927]
[1750417934880,0.23303477,106120.0,106110.0,0.22617927]
[1750417935120,0.27298927,106120.0,106110.0,0.35921181]
[1750417935356,0.27298927,106120.0,106110.0,0.36863563]
[1750417935564,0.25648927,106120.0,106110.0,0.37805936]
[1750417935800,0.22361201,106120.0,106110.0,0.35921181]
[1750417936244,0.22361201,106120.0,106110.0,0.36863572]
[1750417936927,0.22361201,106120.0,106100.0,0.26391813]
[1750417936928,0.009424,106110.0,106100.0,0.26391813]
[1750417937172,0.22233182,106110.0,106100.0,0.05657646]
[1750417937466,5.61087041,106110.0,106100.0,4.813e-05]
[1750417939062,5.61187041,106110.0,106100.0,4.813e-05]
[1750417939301,5.61187041,106110.0,106100.0,0.00204813]
[1750417939538,5.61187041,106110.0,106100.0,4.813e-05]
[1750417940680,5.95187041,106110.0,106100.0,4.813e-05]
[1750417943812,5.99652575,106110.0,106100.0,4.813e-05]
[1750417944229,5.96641126,106110.0,106100.0,4.813e-05]
[1750417944446,5.96941126,106110.0,106100.0,4.813e-05]
[1750417944878,5.97341126,106110.0,106100.0,4.813e-05]
[1750417945527,5.96941126,106110.0,106100.0,4.813e-05]
[1750417946206,5.97241126,106110.0,106100.0,4.813e-05]
[1750417946543,0.21681614,106080.0,106070.0,0.31633514]
[1750417946853,0.26564272,106080.0,106070.0,0.30738063]
[1750417947281,0.26564272,106080.0,106070.0,0.31680783]
[1750417947903,0.26564272,106080.0,106070.0,0.31780783]
[1750417948883,0.26564272,106080.0,106070.0,0.30838063]
[1750417949113,5.79538033,106080.0,106070.0,0.00157269]
[1750417949335,5.79538033,106080.0,106070.0,0.00357269]
[1750417949979,5.79538033,106080.0,106070.0,0.00157269]
[1750417950642,5.80414029,106080.0,106070.0,0.00157269]
[1750417950856,5.80414029,106080.0,106070.0,0.00057269]
[1750417958107,0.21685703,106060.0,106050.0,0.32179499]
[1750417958753,0.0377127,106060.0,106050.0,0.32179499]
[1750417958965,0.23571382,106060.0,106050.0,0.32179499]
[1750417959397,0.23571382,106060.0,106050.0,0.33079499]
[1750417960229,0.226286,106060.0,106050.0,0.32136646]
[1750417960481,0.27461276,106060.0,106050.0,0.30476646]
[1750417961743,0.27461276,106060.0,106050.0,0.23274883]
[1750417961746,0.26518441,106060.0,106050.0,0.21389028]
[1750417961995,0.26518441,106060.0,106050.0,0.009]
[1750417961996,0.7061349,106060.0,106050.0,0.009]
[1750417962250,5.7505309,106060.0,106050.0,0.009]
[1750417962557,5.7505309,106060.0,106050.0,0.006]
[1750417962787,0.00942933,106050.0,106040.0,0.26776327]
[1750417963043,0.00942924,106050.0,106040.0,0.26776274]
[1750417963305,0.00942915,106050.0,106040.0,0.25833279]
[1750417963532,0.01885848,106050.0,106040.0,0.25833279]
[1750417963744,0.01885813,106050.0,106040.0,0.25833279]
[1750417964099,0.06740486,106050.0,106040.0,0.25833279]
[1750417964305,0.07683419,106050.0,106040.0,0.25833279]
[1750417964519,0.07683375,106050.0,106040.0,0.25833279]
[1750417965217,0.07683375,106050.0,106040.0,0.26233279]
[1750417965423,0.08626308,106050.0,106040.0,0.26233279]
[1750417965837,0.08626308,106050.0,106040.0,0.26333279]
[1750417966042,0.08626255,106050.0,106040.0,0.26333279]
[1750417966660,0.09569188,106050.0,106040.0,0.26333279]
[1750417967073,0.08626255,106050.0,106040.0,0.26333279]
[1750417967287,0.0768334,106050.0,106040.0,0.26333279]
[1750417967933,0.08626255,106050.0,106040.0,0.26333279]
[1750417968545,0.08626246,106050.0,106040.0,0.26333279]
[1750417968772,0.0768334,106050.0,106040.0,0.26333279]
[1750417968992,0.04854673,106050.0,106040.0,0.26333279]
[1750417969271,0.00942871,106050.0,106040.0,0.26333279]
[1750417969487,0.34,106060.0,106050.0,0.23257774]
[1750417969703,0.39829609,106060.0,106050.0,0.24797774]
[1750417969927,0.04886791,106060.0,106050.0,0.24797774]
[1750417970181,0.10081977,106060.0,106050.0,0.24797774]
[1750417970614,0.09139168,106060.0,106050.0,0.24797774]
[1750417970823,0.10081977,106060.0,106050.0,0.24797774]
[1750417971261,0.09139168,106060.0,106050.0,0.24997774]
[1750417971501,0.04252377,106060.0,106050.0,0.24997774]
[1750417971731,5.56579795,106070.0,106060.0,0.23335729]
[1750417971938,5.60519795,106070.0,106060.0,0.23335729]
[1750417972163,0.04882693,106070.0,106060.0,0.23335667]
[1750417972385,0.05825404,106070.0,106060.0,0.24895667]
[1750417972603,0.04882693,106070.0,106060.0,0.24895667]
[1750417972842,0.05825404,106070.0,106060.0,0.24895667]
[1750417973106,0.04882693,106070.0,106060.0,0.24895667]
[1750417973331,0.05825404,106070.0,106060.0,0.24895667]
[1750417973775,0.13763067,106070.0,106060.0,0.24895667]
[1750417973995,0.73551224,106080.0,106070.0,0.21683685]
[1750417973996,0.37751223,106080.0,106070.0,0.21683685]
[1750417974214,0.06748557,106080.0,106070.0,0.23253685]
[1750417974456,0.07691223,106080.0,106070.0,0.23253685]
[1750417975342,0.03751223,106080.0,106070.0,0.23253685]
[1750417975558,0.08291223,106080.0,106070.0,0.23253685]
[1750417976936,0.34198507,106080.0,106070.0,0.21683685]
[1750417978018,0.34198507,106080.0,106070.0,0.21683703]
[1750417978888,0.34198507,106080.0,106070.0,0.22626423]
[1750417979521,0.35141191,106080.0,106070.0,0.22626423]
[1750417980580,0.3419856,106080.0,106070.0,0.21683703]
[1750417980810,0.33255902,106080.0,106070.0,0.21683703]
[1750417981021,0.32313236,106080.0,106070.0,0.20740974]
[1750417981224,0.32313236,106080.0,106070.0,0.21683703]
[1750417981968,0.32313236,106080.0,106070.0,0.19798236]
[1750417982182,0.32313236,106080.0,106070.0,0.20740991]
[1750417982391,0.31370561,106080.0,106070.0,0.20740991]
[1750417983028,0.31370561,106080.0,106070.0,0.21683737]
[1750417983786,0.31370561,106080.0,106070.0,0.20740991]
[1750417984008,0.00942782,106060.0,106050.0,0.44038767]
[1750417984225,0.25625703,106060.0,106050.0,0.20489028]
[1750417984446,0.34401332,106060.0,106050.0,0.19801934]
[1750417985551,0.34401332,106060.0,106050.0,0.20001961]
[1750417985757,0.3345855,106060.0,106050.0,0.21887791]
[1750417985985,0.32515741,106060.0,106050.0,0.20944885]
[1750417986651,0.32515741,106060.0,106050.0,0.21887783]
[1750417987885,0.32515741,106060.0,106050.0,0.22830672]
[1750417989327,0.32515741,106060.0,106050.0,0.21887783]
[1750417989975,0.13658491,106060.0,106050.0,0.22830672]
[1750417990312,0.32515741,106060.0,106050.0,0.22830672]
[1750417990743,0.32515741,106060.0,106050.0,0.21887783]
[1750417991936,0.32515741,106060.0,106050.0,0.20944885]
[1750417992167,0.32515741,106060.0,106050.0,0.218878]
[1750417993243,0.32515741,106060.0,106050.0,0.22830706]
[1750417994565,0.32515741,106060.0,106050.0,0.20001979]
[1750417994778,0.32515741,106060.0,106050.0,0.20944903]
[1750417995184,0.32515741,106060.0,106050.0,0.21887818]
[1750417996235,0.32515741,106060.0,106050.0,0.20944903]
[1750417996439,0.30630044,106060.0,106050.0,0.20001979]
[1750417996646,0.32150044,106060.0,106050.0,0.20944921]
[1750417998470,5.36589644,106060.0,106050.0,0.20944921]
[1750417998901,5.36589644,106060.0,106050.0,0.21887854]
[1750418000335,5.46117537,106060.0,106050.0,0.002]
[1750418007053,5.80117537,106060.0,106050.0,0.002]
[1750418011621,5.95413537,106060.0,106050.0,0.002]
[1750418020132,5.95413537,106060.0,106050.0,0.00101658]
[1750418020970,5.59821561,106050.0,106040.0,0.0001]
[1750418021179,5.84648546,106050.0,106040.0,0.0001]
[1750418022580,5.88576546,106050.0,106040.0,0.0001]
[1750418022781,5.90106546,106050.0,106040.0,0.0001]
[1750418022990,5.88576546,106050.0,106040.0,0.0001]
[1750418023203,5.88576546,106050.0,106040.0,0.0011]
[1750418023412,5.98104439,106050.0,106040.0,0.0011]